bitfinex/quotes_ETHUSD_20220219
["timestamp","ask_amount","ask_price","bid_price","bid_amount"]
[1645302512419,2.40740534,2759.2,2758.9,0.00303264]
[1645302512720,2.40740534,2759.2,2758.8,0.68705104]
[1645302512924,2.40740534,2759.2,2758.9,0.00303264]
[1645302513921,2.40740534,2759.2,2758.8,0.68705104]
[1645302514120,2.40740534,2759.2,2758.9,0.00303265]
[1645302515122,2.40740534,2759.2,2758.8,0.68705104]
[1645302515360,2.40740534,2759.2,2758.9,0.00303265]
[1645302515567,1.50061534,2759.2,2758.9,0.00303265]
[1645302515761,0.97861534,2759.2,2758.9,0.00303265]
[1645302516461,0.97861534,2759.2,2758.8,0.68705104]
[1645302516663,0.97861534,2759.2,2758.9,0.00303265]
[1645302517163,0.97861534,2759.2,2758.8,0.64008369]
[1645302517362,0.97861534,2759.2,2758.9,1.54001636]
[1645302517567,0.97861534,2759.2,2759.0,1.54001636]
[1645302517766,0.97861534,2759.2,2759.1,1.54001636]
[1645302518265,0.97861534,2759.2,2758.6,2.46136098]
[1645302518464,0.97861534,2759.2,2758.7,1.54001636]
[1645302518667,0.97861534,2759.2,2758.8,1.54001636]
[1645302519119,0.97861534,2759.2,2758.9,1.54001636]
[1645302519314,0.97861534,2759.2,2759.0,1.54001636]
[1645302519514,0.97861534,2759.2,2759.1,1.54001636]
[1645302519718,0.97861534,2759.2,2758.7,0.92134462]
[1645302519916,0.97861534,2759.2,2758.6,2.46136098]
[1645302520116,0.97861534,2759.2,2758.7,1.54001636]
[1645302520316,0.97861534,2759.2,2758.8,1.54001636]
[1645302520516,0.97861534,2759.2,2758.9,1.54001636]
[1645302520720,0.97861534,2759.2,2759.0,1.54001636]
[1645302520918,0.97861534,2759.2,2759.1,1.54001636]
[1645302521116,0.97861534,2759.2,2758.7,3.5]
[1645302521316,0.97861534,2759.2,2758.8,0.00323886]
[1645302521623,0.97861534,2759.2,2758.8,1.54325522]
[1645302522419,0.97861534,2759.2,2758.8,1.54001636]
[1645302522775,0.97861534,2759.2,2758.9,1.54001636]
[1645302522966,0.97861534,2759.2,2759.0,1.54001636]
[1645302523167,0.97861534,2759.2,2759.1,1.54001636]
[1645302523372,0.97861534,2759.2,2758.8,0.0032388]
[1645302523567,0.97861534,2759.2,2758.7,1.54001636]
[1645302523768,0.97861534,2759.2,2758.8,1.54325526]
[1645302523971,0.97861534,2759.2,2758.9,1.54001636]
[1645302524169,0.97861534,2759.2,2759.0,1.54001636]
[1645302524373,0.97861534,2759.2,2759.1,1.54001636]
[1645302524769,0.97861534,2759.2,2758.7,1.54001636]
[1645302524970,0.97861534,2759.2,2758.8,1.54325526]
[1645302525169,0.97861534,2759.2,2758.9,1.54001636]
[1645302525372,0.97861534,2759.2,2759.0,1.54001636]
[1645302525571,0.97861534,2759.2,2759.1,1.54001636]
[1645302525772,0.97861534,2759.2,2758.8,1.54325526]
[1645302525981,0.97861534,2759.2,2758.8,1.54001636]
[1645302526179,0.97861534,2759.2,2758.9,1.54001636]
[1645302526374,0.97861534,2759.2,2759.0,1.54001636]
[1645302526619,0.97861534,2759.2,2759.1,1.54001636]
[1645302526818,0.97861534,2759.2,2758.8,0.0032389]
[1645302526819,1.88541534,2759.2,2758.8,1.54325526]
[1645302527019,1.88541534,2759.2,2758.9,1.54001636]
[1645302527220,1.88541534,2759.2,2759.0,1.54001636]
[1645302527420,1.88541534,2759.2,2759.1,1.54001636]
[1645302527622,1.88541534,2759.2,2758.8,0.0032388]
[1645302528323,4.82826412,2759.2,2758.7,0.68860818]
[1645302528527,1.88541534,2759.2,2758.8,0.0032388]
[1645302528922,0.90693,2759.1,2758.8,0.0032388]
[1645302529123,0.90693,2759.1,2758.8,1.54320305]
[1645302529322,0.90693,2759.1,2758.9,1.53996425]
[1645302529523,0.90693,2759.1,2759.0,1.53996425]
[1645302529924,0.90693,2759.1,2758.8,0.00323876]
[1645302530570,2.79233534,2759.2,2759.1,0.73566501]
[1645302530768,2.79233534,2759.2,2759.1,2.27562926]
[1645302530968,1.88541534,2759.2,2759.1,2.27562926]
[1645302543820,1.88541534,2759.2,2759.1,2.22562926]
[1645302550524,0.24284896,2759.2,2759.1,2.22562926]
[1645302555079,0.76484896,2759.2,2759.1,2.22562926]
[1645302555277,1.81396,2759.0,2758.8,0.0032389]
[1645302555874,1.81396,2759.0,2758.6,0.68860818]
[1645302556075,0.13983183,2758.9,2758.6,0.68860818]
[1645302556274,0.13983183,2758.9,2758.8,0.00323873]
[1645302557123,0.13983183,2758.9,2758.6,0.68860818]
[1645302557318,0.90693,2758.8,2758.7,0.00323875]
[1645302558021,0.13983183,2758.9,2758.7,0.00323875]
[1645302558219,2.29297811,2759.2,2758.7,0.00323875]
[1645302558220,1.7461,2759.2,2758.7,0.00323875]
[1645302558420,1.7461,2759.2,2758.6,0.68860818]
[1645302558619,1.7461,2759.2,2758.7,0.00323878]
[1645302559624,0.90685,2759.1,2758.7,0.68860818]
[1645302559819,1.42885,2759.1,2758.8,0.00323876]
[1645302560022,1.2241,2759.2,2758.8,0.00323876]
[1645302560263,1.2241,2759.2,2758.8,0.69184694]
[1645302560870,1.2241,2759.2,2758.8,0.68860818]
[1645302561067,1.2241,2759.2,2758.8,0.0032388]
[1645302561863,1.2241,2759.2,2758.7,0.68860818]
[1645302562065,0.90686,2759.1,2758.7,0.68860818]
[1645302562269,0.90686,2759.1,2758.8,0.0032388]
[1645302562969,2.3358,2759.1,2758.8,0.0032388]
[1645302563166,1.81396,2759.0,2758.4,0.68860818]
[1645302563366,0.522,2758.9,2758.4,0.68860818]
[1645302563565,0.90703,2758.8,2758.4,0.68860818]
[1645302563766,0.90703,2758.8,2758.4,0.58860818]
[1645302563767,1.42903,2758.8,2758.4,0.58860818]
[1645302564021,0.90707,2758.7,2758.2,0.92134462]
[1645302564223,1.42903,2758.8,2758.2,0.92134462]
[1645302564620,1.42903,2758.8,2758.3,0.00323896]
[1645302565422,4.92903,2758.8,2758.3,0.00323896]
[1645302565620,4.92903,2758.8,2758.2,0.92134462]
[1645302565822,1.42903,2758.8,2758.4,0.00323891]
[1645302566021,4.92903,2758.8,2758.4,0.00323891]
[1645302566621,1.42903,2758.8,2758.4,0.00323891]
[1645302566821,1.42903,2758.8,2758.1,0.92134462]
[1645302567020,1.42903,2758.8,2758.5,0.00323888]
[1645302567868,1.42903,2758.8,2758.1,0.92134462]
[1645302568071,1.42903,2758.8,2758.1,0.87134462]
[1645302568269,1.42903,2758.8,2758.5,0.00323886]
[1645302569068,1.42903,2758.8,2758.0,1.90270806]
[1645302569470,1.42903,2758.8,2758.5,0.00323886]
[1645302570271,1.42903,2758.8,2758.0,1.90270806]
[1645302570672,5.31396,2759.0,2758.9,0.21369416]
[1645302570872,2.33596,2759.0,2758.9,0.21369416]
[1645302571074,5.83596,2759.0,2758.9,0.21369416]
[1645302571273,6.74289,2759.0,2758.9,0.21369416]
[1645302571919,8.34289,2759.0,2758.9,0.21369416]
[1645302573924,8.34289,2759.0,2758.2,0.68885102]
[1645302573925,47.78630584,2758.9,2758.2,0.68885102]
[1645302574121,0.90696,2758.7,2758.2,0.68885102]
[1645302575374,0.90696,2758.7,2758.3,0.00323896]
[1645302575774,0.90696,2758.7,2758.3,0.69208998]
[1645302576375,0.90696,2758.7,2758.3,0.68885102]
[1645302576575,0.90696,2758.7,2758.4,0.00140602]
[1645302577176,1.42887,2758.9,2758.4,0.00140602]
[1645302577374,1.42887,2758.9,2758.4,0.69025704]
[1645302577573,1.42887,2758.9,2758.4,0.68885102]
[1645302577774,1.42887,2758.9,2758.5,0.00324147]
[1645302578574,1.42887,2758.9,2758.5,1.54342119]
[1645302578773,1.42887,2758.9,2758.3,0.68885102]
[1645302578774,1.42887,2758.9,2758.6,1.54017972]
[1645302579017,1.42887,2758.9,2758.7,1.54017972]
[1645302579215,1.42887,2758.9,2758.8,1.54017972]
[1645302579617,1.42887,2758.9,2758.6,0.00324145]
[1645302580019,1.42887,2758.9,2758.3,0.68885102]
[1645302580419,1.42887,2758.9,2758.6,0.00324142]
[1645302581220,1.42887,2758.9,2758.3,0.68885102]
[1645302581422,1.42887,2758.9,2758.6,0.00324142]
[1645302581822,4.92887,2758.9,2758.6,0.00324142]
[1645302582224,5.22887,2758.9,2758.6,0.00324142]
[1645302582421,0.90706,2758.6,2758.3,1.54017972]
[1645302582625,0.90706,2758.6,2758.4,1.54017972]
[1645302582876,0.90706,2758.6,2758.5,1.54017972]
[1645302583076,0.90706,2758.6,2758.1,2.22903074]
[1645302583277,0.90706,2758.6,2758.0,0.51953486]
[1645302583278,0.90706,2758.6,2758.2,2.22903074]
[1645302583474,0.90706,2758.6,2758.3,1.54017972]
[1645302583677,0.90706,2758.6,2758.4,1.54017972]
[1645302583875,0.90706,2758.6,2758.5,1.54017972]
[1645302584274,0.522,2758.7,2758.3,0.0032416]
[1645302584675,0.522,2758.7,2758.3,1.54017972]
[1645302584875,0.522,2758.7,2758.4,1.54017972]
[1645302585175,0.522,2758.7,2758.5,1.54017972]
[1645302585376,0.522,2758.7,2758.6,1.54017972]
[1645302585780,0.522,2758.7,2758.4,0.00324155]
[1645302586075,0.522,2758.7,2758.3,1.54017972]
[1645302586277,0.522,2758.7,2758.5,0.00324147]
[1645302586518,0.522,2758.7,2758.5,1.54342119]
[1645302586718,0.522,2758.7,2758.6,1.54017972]
[1645302586920,0.522,2758.7,2758.5,0.00324147]
[1645302587119,0.522,2758.7,2758.1,2.22903074]
[1645302587520,0.522,2758.7,2758.5,0.00324147]
[1645302588329,0.522,2758.7,2758.1,2.22903074]
[1645302588521,0.90702,2758.6,2758.1,2.22903074]
[1645302588722,0.90702,2758.6,2758.5,0.0032415]
[1645302589524,0.90702,2758.6,2758.1,2.22903074]
[1645302589924,0.90702,2758.6,2758.4,0.00324152]
[1645302590580,3.55921,2758.9,2758.7,0.7358304]
[1645302590777,2.42901,2758.9,2758.8,1.54017972]
[1645302590983,13.47841,2758.9,2758.8,1.54017972]
[1645302591578,13.77841,2758.9,2758.8,1.54017972]
[1645302595024,46.45982028,2758.8,2758.7,0.73907177]
[1645302595324,1.0,2758.8,2758.7,0.73907177]
[1645302595524,1.0,2758.8,2758.7,0.7358304]
[1645302597025,1.90692,2758.8,2758.7,0.7358304]
[1645302597232,8.97841,2758.9,2758.7,0.7358304]
[1645302597233,8.0714,2758.9,2758.7,0.7358304]
[1645302598277,8.0714,2758.9,2758.7,0.7390718]
[1645302599276,8.0714,2758.9,2758.7,0.7358304]
[1645302599577,7.7714,2758.9,2758.7,0.7390718]
[1645302600478,7.7714,2758.9,2758.7,0.7358304]
[1645302600677,7.7714,2758.9,2758.7,0.7390718]
[1645302601523,7.7714,2758.9,2758.7,0.7358304]
[1645302601925,7.7714,2758.9,2758.7,0.7390718]
[1645302602727,7.7714,2758.9,2758.7,0.7358304]
[1645302603124,7.7714,2758.9,2758.7,0.7390718]
[1645302603932,7.7714,2758.9,2758.7,0.7358304]
[1645302604330,7.7714,2758.9,2758.7,0.7390718]
[1645302605271,8.67829,2758.9,2758.7,0.7358304]
[1645302605472,8.67829,2758.9,2758.7,0.7390718]
[1645302606372,8.67829,2758.9,2758.7,0.7358304]
[1645302606577,8.67829,2758.9,2758.7,0.7390718]
[1645302607673,8.67829,2758.9,2758.7,0.7358304]
[1645302607873,8.67829,2758.9,2758.7,0.7390718]
[1645302608873,8.67829,2758.9,2758.7,0.7358304]
[1645302609125,0.20708624,2758.8,2758.7,0.7390718]
[1645302609922,0.20708624,2758.8,2758.7,0.71199662]
[1645302610622,8.15629,2758.9,2758.8,0.41417248]
[1645302612023,11.65629,2758.9,2758.8,0.41417248]
[1645302612870,8.15629,2758.9,2758.8,0.41417248]
[1645302614278,9.15629,2758.9,2758.8,0.41417248]
[1645302615074,12.95629,2758.9,2758.8,0.41417248]
[1645302615273,13.25629,2758.9,2758.8,1.95430985]
[1645302615476,13.77829,2758.9,2758.8,1.95430985]
[1645302615775,13.77829,2758.9,2758.7,0.71523799]
[1645302615975,1.0,2758.8,2758.7,0.71199662]
[1645302616176,1.0,2758.8,2758.7,0.71523799]
[1645302616376,4.5,2758.8,2758.7,0.71523799]
[1645302616630,1.81414,2758.7,2758.1,0.68885102]
[1645302616830,4.022,2758.6,2758.0,0.68885102]
[1645302617228,0.522,2758.6,2758.0,0.68885102]
[1645302617430,0.18585965,2758.5,2758.0,0.68885102]
[1645302617627,0.70785965,2758.5,2758.0,0.68885102]
[1645302618330,1.61499965,2758.5,2758.0,0.68885102]
[1645302618529,0.522,2758.5,2758.0,0.68885102]
[1645302618729,1.42914,2758.5,2758.0,0.68885102]
[1645302619829,1.42914,2758.5,2758.1,0.0030627]
[1645302620878,1.90694,2758.8,2758.1,0.68885102]
[1645302621076,1.90694,2758.8,2758.2,0.00306267]
[1645302621277,0.90694,2758.8,2758.2,0.00306267]
[1645302621478,0.90694,2758.8,2758.3,0.68885102]
[1645302622280,4.40694,2758.8,2758.4,0.00306255]
[1645302622480,4.40694,2758.8,2757.6,2.7511732]
[1645302622481,8.5,2758.7,2757.8,0.91812856]
[1645302622686,0.90718,2758.5,2757.3,0.91812856]
[1645302622884,13.022,2758.4,2757.1,0.00350403]
[1645302623084,8.3942,2758.3,2757.1,0.00350403]
[1645302623279,8.3942,2758.3,2756.8,0.00350403]
[1645302623280,8.7,2758.0,2756.8,0.00350403]
[1645302623480,1.08114722,2757.5,2756.8,0.00350403]
[1645302623681,0.522,2757.4,2756.8,0.00350403]
[1645302623878,1.522,2757.4,2756.5,0.00350403]
[1645302624325,1.522,2757.4,2756.3,0.92163259]
[1645302624326,2.42964,2757.4,2756.3,0.92163259]
[1645302624630,0.90758,2757.0,2756.3,0.61330968]
[1645302624826,0.90758,2757.0,2756.8,0.0029693]
[1645302625027,0.3,2756.9,2756.8,0.0029693]
[1645302625631,0.3,2756.9,2756.3,0.61330968]
[1645302625827,0.3,2756.9,2756.7,0.00296935]
[1645302626029,0.90758,2757.0,2756.7,0.00296935]
[1645302626830,0.90758,2757.0,2756.3,0.61330968]
[1645302627233,0.90758,2757.0,2756.7,0.00296935]
[1645302627876,1.20758,2757.0,2756.7,0.00296935]
[1645302628077,0.90758,2757.0,2756.3,0.61330968]
[1645302628277,0.90758,2757.0,2756.7,0.00283135]
[1645302628475,0.90758,2756.8,2756.7,0.00283135]
[1645302628679,1.522,2757.2,2756.7,0.00283135]
[1645302628874,0.822,2757.2,2756.7,0.00283135]
[1645302629276,0.822,2757.2,2756.3,0.61330968]
[1645302629476,0.90751,2757.0,2756.8,0.00283131]
[1645302630379,0.90751,2757.0,2756.3,0.61330968]
[1645302630777,1.0,2757.0,2756.8,0.00283133]
[1645302631179,0.522,2756.9,2756.8,0.00283133]
[1645302631381,5.022,2756.9,2756.8,0.00283133]
[1645302631626,47.99716867,2756.8,2755.9,0.00350403]
[1645302631828,47.99716867,2756.8,2755.6,0.00350403]
[1645302631829,6.83764,2756.7,2755.6,0.00350403]
[1645302632025,6.83764,2756.7,2755.4,0.92163259]
[1645302632026,9.861115,2756.7,2755.4,0.92163259]
[1645302632224,9.861115,2756.7,2755.6,0.63881027]
[1645302632225,0.60057189,2756.5,2755.6,0.63881027]
[1645302632425,0.60057189,2756.5,2755.7,0.00350403]
[1645302632629,0.60057189,2756.5,2755.7,0.68878784]
[1645302632823,0.60057189,2756.5,2755.8,0.00350403]
[1645302633024,3.24545,2756.7,2755.8,0.00350403]
[1645302633227,0.522,2756.7,2755.8,0.00350403]
[1645302633523,1.4296,2756.7,2755.8,0.00350403]
[1645302633926,3.5,2756.6,2755.8,0.00350403]
[1645302634323,4.022,2756.6,2755.8,0.00350403]
[1645302634823,0.522,2756.6,2755.8,0.00350403]
[1645302635023,1.04296569,2756.6,2755.8,0.00350403]
[1645302635282,0.9078,2756.4,2755.8,0.00350403]
[1645302635470,0.9078,2756.4,2756.1,0.00324271]
[1645302635669,1.81549,2756.4,2756.1,0.00324271]
[1645302636271,1.81549,2756.4,2756.1,1.544413]
[1645302636272,0.90769,2756.4,2756.1,1.544413]
[1645302636570,0.90769,2756.4,2756.2,1.54467432]
[1645302636771,0.90769,2756.4,2755.6,1.32409408]
[1645302636772,0.90769,2756.4,2756.3,1.54117029]
[1645302637072,0.90769,2756.4,2756.1,0.00324269]
[1645302637372,0.90762,2756.7,2756.1,0.00324269]
[1645302637574,6.4033,2756.8,2756.1,0.00324269]
[1645302637575,9.9033,2756.8,2756.1,0.00324269]
[1645302637771,9.9033,2756.8,2756.1,0.00350403]
[1645302637772,0.522,2756.6,2756.1,0.00350403]
[1645302637975,0.522,2756.6,2756.1,0.00674672]
[1645302638273,4.022,2756.6,2756.1,0.00324269]
[1645302638671,0.90781,2756.5,2756.1,0.00324269]
[1645302638875,2.33767,2756.5,2756.0,0.00350403]
[1645302639124,2.33767,2756.5,2756.2,0.00324264]
[1645302639322,0.30791152,2756.3,2756.2,0.00324264]
[1645302639525,0.82991152,2756.3,2756.2,0.00324264]
[1645302640125,1.73790152,2756.3,2756.0,0.00350403]
[1645302640325,1.81598,2756.2,2756.1,0.00324269]
[1645302640529,2.33798,2756.2,2756.1,0.00324269]
[1645302641126,2.33798,2756.2,2756.1,1.49462145]
[1645302641324,0.90787,2755.9,2755.4,0.00350403]
[1645302643873,0.90787,2755.9,2755.5,0.00324299]
[1645302644673,0.90787,2755.9,2755.3,0.64203083]
[1645302644874,0.90787,2755.9,2755.0,0.91812856]
[1645302645074,0.90787,2755.9,2754.9,0.86812856]
[1645302645683,0.90787,2755.9,2754.7,1.3831732]
[1645302645878,0.90787,2755.9,2755.1,0.52208974]
[1645302646728,0.9079806,2756.3,2755.1,0.52208974]
[1645302646729,3.8076,2756.8,2755.9,2.4659936]
[1645302646928,7.3076,2756.8,2755.9,2.4659936]
[1645302647329,4.45519782,2756.8,2756.0,0.48948096]
[1645302647725,3.5,2756.7,2755.9,2.4659936]
[1645302648127,5.36277782,2756.8,2755.9,2.4659936]
[1645302648729,4.71518,2756.8,2755.9,2.4659936]
[1645302649629,3.8076,2756.8,2755.9,2.4659936]
[1645302649828,3.8076,2756.8,2756.1,0.60341545]
[1645302650674,3.8076,2756.8,2755.9,2.4659936]
[1645302650880,2.1637301,2756.8,2755.9,2.4659936]
[1645302651877,2.1637301,2756.8,2756.1,0.46498235]
[1645302652880,6.9637301,2756.8,2756.1,0.46498235]
[1645302653082,7.8713301,2756.8,2755.9,2.4659936]
[1645302653282,6.9637301,2756.8,2755.9,2.4659936]
[1645302654227,7.95756626,2756.8,2755.9,2.4659936]
[1645302654527,0.9077,2756.7,2755.9,2.4659936]
[1645302654725,0.90773,2756.6,2755.9,2.4659936]
[1645302655527,0.90773,2756.6,2755.9,3.14977182]
[1645302657130,0.90773,2756.6,2755.9,2.4659936]
[1645302657332,0.90773,2756.6,2755.9,3.14977182]
[1645302657876,0.90773,2756.6,2755.9,2.4659936]
[1645302658076,0.90773,2756.6,2755.9,3.14977182]
[1645302658276,0.90773,2756.6,2756.0,0.68377822]
[1645302659477,3.0713001,2756.8,2756.0,0.68377822]
[1645302659678,2.1637301,2756.8,2756.0,0.68377822]
[1645302659877,2.1637301,2756.8,2756.2,0.68377822]
[1645302661734,2.1637301,2756.8,2756.3,1.54106344]
[1645302661933,2.1637301,2756.8,2756.4,1.54106344]
[1645302662135,2.1637301,2756.8,2756.5,1.54106344]
[1645302662333,2.1637301,2756.8,2756.6,1.54106344]
[1645302662535,3.0713201,2756.8,2756.7,1.54106344]
[1645302662733,0.90759,2756.8,2756.7,1.54106344]
[1645302663134,0.90759,2756.8,2756.2,0.68377822]
[1645302664536,0.90759,2756.8,2756.3,2.22484166]
[1645302664737,0.90759,2756.8,2756.4,1.54106344]
[1645302664738,1.81528,2756.8,2756.4,1.54106344]
[1645302664937,6.22298,2756.8,2756.5,1.54106344]
[1645302665137,6.22298,2756.8,2756.6,1.54106344]
[1645302665375,3.5,2756.7,2756.0,0.68377822]
[1645302665579,0.9077,2756.6,2756.0,1.54125254]
[1645302665974,0.90775,2756.5,2756.0,1.54125254]
[1645302666174,0.90775,2756.5,2756.1,0.68377822]
[1645302666481,0.90775,2756.5,2756.2,1.54125254]
[1645302666674,0.90775,2756.5,2756.3,1.54125254]
[1645302667076,0.90775,2756.5,2756.4,1.54125254]
[1645302667475,0.90777,2756.4,2756.0,1.54125254]
[1645302667775,0.90777,2756.4,2756.1,1.54135083]
[1645302667974,0.90777,2756.4,2756.2,1.54135083]
[1645302668174,0.90777,2756.4,2756.3,1.54135083]
[1645302668376,0.90777,2756.4,2756.0,2.22512905]
[1645302668575,0.90777,2756.4,2756.1,1.54135083]
[1645302668876,0.90777,2756.4,2756.2,1.54135083]
[1645302669133,0.90777,2756.4,2756.3,1.54135083]
[1645302669326,0.90777,2756.4,2756.0,1.54135083]
[1645302669631,4.40777,2756.4,2756.0,1.54135083]
[1645302669927,1.522,2756.6,2756.0,1.54135083]
[1645302669928,5.022,2756.6,2756.0,1.54135083]
[1645302670125,5.622,2756.6,2756.0,1.54135083]
[1645302671525,6.52966,2756.6,2756.0,1.54135083]
[1645302672126,5.622,2756.6,2756.0,1.54135083]
[1645302672525,5.622,2756.6,2756.0,1.53982231]
[1645302672788,6.52966,2756.6,2756.0,1.53982231]
[1645302672989,1.42966,2756.6,2756.0,1.53982231]
[1645302673989,0.522,2756.6,2756.0,1.53982231]
[1645302676527,0.522,2756.6,2756.0,2.22360053]
[1645302677330,0.522,2756.6,2756.0,1.53982231]
[1645302677731,1.522,2756.6,2756.0,1.53982231]
[1645302677933,1.822,2756.6,2756.0,1.53982231]
[1645302678534,0.90771,2756.5,2756.0,1.53982231]
[1645302678732,1.20771,2756.5,2756.0,1.53982231]
[1645302679331,4.70771,2756.5,2756.0,1.53982231]
[1645302679730,1.0,2756.4,2756.0,1.53982231]
[1645302680287,4.40763,2756.7,2756.4,1.64417117]
[1645302680479,1.0,2756.6,2756.4,1.64417117]
[1645302680883,3.5,2756.5,2756.4,1.64417117]
[1645302681080,4.1,2756.5,2756.4,1.64417117]
[1645302681281,5.1,2756.5,2756.4,1.64417117]
[1645302681480,1.6,2756.5,2756.4,1.64417117]
[1645302681681,0.6,2756.5,2756.4,1.64417117]
[1645302681880,1.50766,2756.6,2756.4,1.64417117]
[1645302682886,3.5,2756.5,2756.4,1.64417117]
[1645302683091,2.02966,2756.6,2756.4,1.64417117]
[1645302683283,3.5,2756.5,2756.4,1.64417117]
[1645302683483,2.02966,2756.6,2756.4,1.64417117]
[1645302683883,3.5,2756.5,2756.4,1.64417117]
[1645302685638,4.022,2756.5,2756.4,1.64417117]
[1645302685834,0.15253121,2756.2,2755.9,2.4659936]
[1645302686036,0.90785,2756.1,2755.9,2.4659936]
[1645302686638,3.5,2756.0,2755.9,2.4659936]
[1645302687632,3.8,2756.0,2755.9,2.4659936]
[1645302688083,0.3,2756.0,2755.9,2.4659936]
[1645302688282,3.8,2756.0,2755.9,2.4659936]
[1645302688478,0.3,2756.0,2755.9,2.4659936]
[1645302692529,0.3,2756.0,2755.9,4.00759073]
[1645302695982,0.90785,2756.1,2755.9,4.00759073]
[1645302696185,1.6733,2756.5,2756.0,1.54159713]
[1645302696384,7.2494,2756.4,2756.0,1.54159713]
[1645302696783,7.5494,2756.4,2756.0,1.54159713]
[1645302699332,5.31569,2756.3,2756.0,1.54159713]
[1645302699531,6.13769,2756.3,2756.0,1.54159713]
[1645302699731,2.63769,2756.3,2756.0,1.54159713]
[1645302700535,0.90782,2756.2,2756.0,1.54159713]
[1645302700731,0.90782,2756.2,2755.9,2.4659936]
[1645302701132,1.20782,2756.2,2755.9,2.4659936]
[1645302701734,3.5,2756.1,2755.9,2.4659936]
[1645302701934,0.522,2756.0,2755.9,2.4659936]
[1645302702138,0.822,2756.0,2755.9,2.4659936]
[1645302706185,4.322,2756.0,2755.9,2.4659936]
[1645302709835,0.822,2756.0,2755.9,2.4659936]
[1645302714644,0.14985316,2755.6,2755.4,0.00348013]
[1645302714845,0.90802,2755.5,2755.4,0.00303108]
[1645302715644,0.90802,2755.5,2755.2,0.00348013]
[1645302716045,0.90802,2755.5,2755.3,0.00303084]
[1645302717045,0.90802,2755.5,2755.2,0.00348013]
[1645302717244,0.90802,2755.5,2755.3,0.00303086]
[1645302718094,0.90802,2755.5,2755.2,0.00348013]
[1645302718393,0.90802,2755.5,2755.3,0.00303086]
[1645302719397,1.81614,2755.5,2755.1,0.63725835]
[1645302719598,1.81614,2755.5,2755.3,0.00303087]
[1645302720599,1.81614,2755.5,2754.8,0.1814]
[1645302720600,2.72429,2755.5,2754.8,0.1814]
[1645302720801,0.9081,2755.3,2754.9,1.54189533]
[1645302721302,0.9081,2755.3,2755.0,1.54189533]
[1645302721532,1.1607,2755.6,2754.9,1.54189533]
[1645302721932,3.1215,2755.8,2755.6,0.4839333]
[1645302722134,0.6,2755.8,2755.7,1.54189533]
[1645302722335,1.20794,2755.8,2755.7,1.54189533]
[1645302722635,1.50794,2755.8,2755.7,1.54189533]
[1645302723038,2.13025487,2755.8,2755.7,1.54189533]
[1645302726487,2.1288138,2755.8,2755.7,1.54189533]
[1645302726683,5.6288138,2755.8,2755.7,1.54189533]
[1645302727884,2.1288138,2755.8,2755.7,1.54189533]
[1645302731535,1.50649893,2755.8,2755.7,1.54189533]
[1645302732981,2.12925367,2755.8,2755.7,1.54189533]
[1645302735885,5.62925367,2755.8,2755.7,1.54189533]
[1645302736935,2.12925367,2755.8,2755.7,1.54189533]
[1645302738134,5.62925367,2755.8,2755.7,1.54189533]
[1645302739934,2.12925367,2755.8,2755.7,1.54189533]
[1645302740789,0.94826392,2756.0,2755.7,1.54189533]
[1645302740997,3.0642,2756.2,2755.7,1.54189533]
[1645302741193,7.2494,2756.4,2755.7,1.54189533]
[1645302741391,7.2494,2756.4,2755.7,1.72329533]
[1645302741590,7.2494,2756.4,2755.8,1.54189533]
[1645302742693,7.35712,2756.4,2755.8,1.54189533]
[1645302743296,3.5,2756.3,2755.9,1.54189533]
[1645302743496,3.5,2756.3,2756.0,1.54189533]
[1645302743694,3.5,2756.3,2755.6,0.4839333]
[1645302743894,3.5,2756.3,2755.7,1.54180682]
[1645302744147,0.90785,2756.2,2755.7,1.54180682]
[1645302744343,3.5,2756.1,2755.7,1.54180682]
[1645302744545,1.20799,2756.0,2755.7,1.54180682]
[1645302745746,0.90799,2755.9,2755.7,1.54180682]
[1645302750391,3.55654395,2756.0,2755.9,0.73653991]
[1645302750791,3.55654395,2756.0,2755.9,2.27834673]
[1645302756388,2.64857395,2756.0,2755.9,2.27834673]
[1645302756591,0.83260395,2756.0,2755.9,2.27834673]
[1645302760337,0.53260395,2756.0,2755.9,2.27834673]
[1645302765292,0.83260395,2756.0,2755.9,2.27834673]
[1645302770696,0.69052395,2756.1,2755.9,2.27834673]
[1645302770888,0.99052395,2756.1,2756.0,1.54180682]
[1645302771489,1.53167885,2756.1,2756.0,1.54180682]
[1645302773690,8.59484,2756.4,2756.0,1.54180682]
[1645302773890,7.35714,2756.4,2756.0,1.54180682]
[1645302774145,7.95714,2756.4,2756.0,1.54180682]
[1645302777789,3.5,2756.3,2756.0,1.54180682]
[1645302778492,7.95714,2756.4,2756.0,1.54180682]
[1645302778986,3.5,2756.3,2756.0,1.54180682]
[1645302779187,7.95714,2756.4,2756.0,1.54180682]
[1645302779389,0.90783,2756.3,2756.0,1.54180682]
[1645302779589,0.90782,2756.2,2756.0,1.54180682]
[1645302781847,1.456258,2756.2,2756.0,1.54180682]
[1645302783249,0.90782,2756.2,2756.0,1.54180682]
[1645302784652,6.7494,2756.4,2756.0,1.54180682]
[1645302784653,6.4494,2756.4,2756.0,1.54180682]
[1645302785289,7.0494,2756.4,2756.0,1.54180682]
[1645302786693,0.90777,2756.3,2756.0,1.54180682]
[1645302791941,0.90777,2756.3,2756.0,1.54097294]
[1645302804339,4.40777,2756.3,2756.0,1.54097294]
[1645302804540,0.90777,2756.3,2756.0,1.54097294]
[1645302806841,6.2235659,2756.3,2756.0,1.54097294]
[1645302807141,1.81583,2756.2,2756.0,1.54097294]
[1645302809998,0.90777,2756.3,2756.0,1.54097294]
[1645302810199,6.7494,2756.4,2756.0,1.54097294]
[1645302810200,6.4494,2756.4,2756.0,1.54097294]
[1645302810793,7.0494,2756.4,2756.0,1.54097294]
[1645302812645,7.95714,2756.4,2756.0,1.54097294]
[1645302813641,7.95714,2756.4,2756.0,1.53999331]
[1645302815289,7.35714,2756.4,2756.0,1.53999331]
[1645302815493,7.35714,2756.4,2756.0,2.14509658]
[1645302815691,7.35714,2756.4,2756.0,0.60510327]
[1645302815898,0.01131307,2756.8,2756.1,16.0]
[1645302816092,0.01131307,2756.8,2756.4,16.11]
[1645302816293,0.01131307,2756.8,2756.5,14.61]
[1645302816494,0.00282779,2757.2,2756.8,0.02262613]
[1645302816692,0.00650596,2757.8,2757.2,0.62002268]
[1645302816891,0.00650596,2758.0,2757.2,0.62002268]